Cogmind - Beta 16 @@@ ROGUE MODE // 2026.01.16 @ 15:49:53 Player: ILikeVoltron Result: Destroyed by G-47 Trooper with Particle Gun Performance ------------- Evolutions (2) 1000 Regions Visited (4) 800 Robots Destroyed (69) 345 Value Destroyed (1897) 1897 Prototype IDs (4) 80 Alien Tech Used (0) 0 Bonus (66) 66 TOTAL SCORE: 4188 Bonus ------- Follower Combat Kills 66 Cogmind --------- Core Integrity 0/550 Matter 172/300 Energy 15/100 System Corruption 5% Temperature Cool (62) Movement Core (900) Ox17 Location -8/Storage Parts ------- > --- POWER (1) -------- (None) > --- PROPULSION (5) --- (None) > --- UTILITY (3) ------ High-capacity Storage Unit Improved Targeting Computer Core Shielding > --- WEAPON (2) ------- Heavy Particle Cannon Heavy Particle Cannon > --- INVENTORY (20) --- Cooling System Large Storage Unit High-capacity Matter Pod (200) Machine Analyzer Improved Terrain Scanner Seismic Detector Transport Network Coupler Improved Targeting Computer Light Armor Plating Light Armor Plating Improved Light Armor Plating Reflective Plating Shield Generator Drone Bay (2/2) Heavy Particle Cannon Axe Peak State ------------ > --- POWER ------------ Reinforced Ion Engine > --- PROPULSION ------- Aluminum Leg Aluminum Leg Improved Aluminum Leg Carbon-fiber Leg Carbon-fiber Leg > --- UTILITY ---------- High-capacity Storage Unit Improved Targeting Computer Drone Bay > --- WEAPON ----------- Heavy Particle Cannon Heavy Particle Cannon > --- INVENTORY -------- Cooling System Cooling System Large Storage Unit High-capacity Matter Pod Improved Terrain Scanner Seismic Detector Transport Network Coupler Improved Targeting Computer Core Shielding Light Armor Plating Light Armor Plating Light Armor Plating Reflective Plating Shield Generator Heavy Particle Cannon Heavy Particle Cannon Grenade Launcher Grenade Launcher Mini Grenade Launcher Mining Laser [Rating: 29] Favorites ----------- Power Light Ion Engine Engine Light Ion Engine Propulsion Improved Aluminum Leg Leg Improved Aluminum Leg Utility High-capacity Storage Unit Device Cooling System Storage High-capacity Storage Unit Processor Improved Targeting Computer Protection Core Shielding Weapon Particle Cannon Energy Gun EM Pulse Gun Energy Cannon Particle Cannon Ballistic Gun Light Assault Rifle Launcher Grenade Launcher Special Weapon Mining Laser Build | -11 -10 -9 -8 -8 ------- Run | Yrd Mat Mat Mat Sto Slots Evolved 4 | . . 2 2 . Power . | . . . . . Propulsion 3 | . . 2 1 . Utility 1 | . . . 1 . Weapon . | . . . . . Parts Attached 50 | 4 17 10 12 7 Power 3 | . 1 1 1 . Engine 3 | . 1 1 1 . Core . | . . . . . Reactor . | . . . . . Propulsion 14 | . 6 3 5 . Treads . | . . . . . Leg 14 | . 6 3 5 . Wheel . | . . . . . Hover . | . . . . . Flight . | . . . . . Utility 16 | 2 5 4 3 2 Device 10 | 2 3 2 1 2 Storage 3 | . 1 2 . . Processor 1 | . . . 1 . Hackware . | . . . . . Protection 2 | . 1 . 1 . Artifact . | . . . . . Weapon 17 | 2 5 2 3 5 Energy Gun 2 | 2 . . . . Energy Cannon 8 | . 3 1 3 1 Ballistic Gun 3 | . 2 . . 1 Ballistic Cannon . | . . . . . Launcher 3 | . . 1 . 2 Special Weapon 1 | . . . . 1 Impact Weapon . | . . . . . Slashing Weapon . | . . . . . Piercing Weapon . | . . . . . Special Melee Weapon . | . . . . . Unidentified Prototypes 1 | . . . . 1 Parts Lost 16 | . 1 2 3 10 Power 2 | . . 1 . 1 Propulsion 9 | . 1 1 2 5 Utility 1 | . . . . 1 Weapon 4 | . . . 1 3 Highest Loss Streak 9 | . 1 1 3 9 To Critical Strikes . | . . . . . Average Backups 14 | 7 8 16 19 19 Power . | 1 1 . . . Propulsion 1 | 3 1 . . . Utility 8 | 1 3 8 12 14 Weapon 4 | 1 2 6 7 5 Tool/Special . | . . . . . Unused Backups 28 | 5 8 . 2 13 Power 2 | 1 1 . . . Propulsion 8 | 3 5 . . . Utility 12 | 1 1 . . 10 Weapon 6 | . 1 . 2 3 Tool/Special . | . . . . . Average Slot Usage (%) 98 | . 100 99 97 93 Engine 11 | . 14 10 9 8 Leg 37 | . 28 43 43 39 Device 11 | . 13 11 13 8 Storage 11 | . 14 11 9 9 Processor 2 | . . . 3 9 Energy Cannon 19 | . 20 20 17 16 Ballistic Gun 1 | . 4 . . . Peak Build Rating 29 | 9 14 19 26 29 Average Rating 16 | 7 10 17 21 25 On Entrance 14 | 6 8 12 18 26 Avg Prop Armor Cover (%) . | . . . . . Naked Turns . | . . . . . Heaviest Build 68 | 13 24 53 65 68 Greatest Support 63 | 20 26 52 63 63 Greatest Overweight (x) 1 | . 1 1 1 1 Average Overweight (x) . | . . . . . Largest Inventory Capacity 20 | 8 10 20 20 20 Average Capacity 14 | 8 8 17 20 20 Most Carried 20 | 8 10 20 20 20 Average Carried 14 | 7 8 16 19 19 Final Capacity 20 | 8 10 20 20 20 Final Carried 20 | 8 10 20 20 16 Class Distribution -------------------- 63% | Mutant 36% | Scavenger-Mutant Dominant Class ---------------- Mutant | -10/Materials Mutant | -9/Materials Scavenger-Mutant | -8/Materials Scavenger-Mutant | -8/Storage Resources | -11 -10 -9 -8 -8 ----------- Run | Yrd Mat Mat Mat Sto Matter Collected 1318 | 240 555 269 149 105 Remotely 288 | 20 268 . . . Salvage Created 1982 | 160 580 507 295 440 Parts 121 | 11 46 36 11 17 Haulers Intercepted 1 | . 1 . . . Recyclers Shooed 4 | 1 . 2 . 1 Parts Field Recycled . | . . . . . Retrieved Matter . | . . . . . Parts Self-Destructed . | . . . . . Prevented . | . . . . . Parts Restored . | . . . . . Kills | -11 -10 -9 -8 -8 ------- Run | Yrd Mat Mat Mat Sto Combat Hostiles Destroyed 53 | . 15 17 6 15 Guns 4 | . 4 . . . Cannons 35 | . 11 10 6 8 AOE 13 | . . 7 . 6 Classes Destroyed 13 | 3 5 2 2 1 Worker 3 | 2 . 1 . . Tunneler 3 | 2 . 1 . . Hauler 1 | . 1 . . . Recycler 2 | 1 . 1 . . Operator 4 | . 3 1 . . Watcher 3 | . 2 1 . . Swarmer 16 | . 6 7 . 3 Grunt 20 | . 9 7 2 2 Brawler 1 | . . . 1 . Duelist 5 | . . 1 . 4 Protector 1 | . . . . 1 Sentry 6 | . . 2 1 3 Hunter 4 | . . . 2 2 Best Kill Streak 12 | 2 4 12 3 7 Combat Bots Only 7 | . 4 5 3 7 Max Kills in Single Turn 2 | 1 1 2 1 2 Gunslinging . | . . . . . Exploded 2 | . . 2 . 2 Melee . | . . . . . Uniques/NPCs Destroyed . | . . . . . Combat | -11 -10 -9 -8 -8 -------- Run | Yrd Mat Mat Mat Sto Hostile Shots Fired 277 | . 90 69 31 87 Missed 80 | . 22 22 5 31 Hits 197 | . 68 47 26 56 Melee 15 | . . 2 2 11 Projectile 182 | . 68 45 24 45 Critical Strikes 7 | . . 2 1 4 Actively Blocked 1 | . . . . 1 Damage Taken 3206 | . 686 635 438 1447 Core 822 | . 99 163 46 514 Absorbed by Shields 3 | . . . . 3 Redirected to Shielding 3 | . . . . 3 Core Remaining (%) 73 | 100 60 59 . . Volleys Fired 140 | 9 50 31 15 35 Largest 2 | 2 2 2 2 2 Hottest 150 | 80 136 136 150 150 Shots Fired 255 | 18 100 50 28 59 Gun 58 | 18 40 . . . Cannon 172 | . 60 38 28 46 Launcher 23 | . . 12 . 11 Special 2 | . . . . 2 Kinetic 34 | . 34 . . . Thermal 174 | . 60 38 28 48 Explosive 23 | . . 12 . 11 Electromagnetic 24 | 18 6 . . . Robot Hit Streak 21 | 6 19 7 16 21 Robot Miss Streak 5 | 2 5 2 1 3 Penetration Max . | . . . . . Secondary Targets . | . . . . . Shots Hit Robots 167 | 12 65 31 24 35 Core Hits 105 | 6 27 34 10 28 Critical Kills 1 | . . . . 1 Critical Parts Destroyed . | . . . . . Critical Strikes 1 | . . . . 1 Meltdown 1 | . . . . 1 Melee Attacks . | . . . . . Impact . | . . . . . Slashing . | . . . . . Piercing . | . . . . . Sneak Attacks . | . . . . . Combat Hostiles . | . . . . . Follow-up Attacks . | . . . . . Damage Inflicted 4855 | 160 992 1244 535 1924 Guns 367 | 160 207 . . . Cannons 2503 | . 785 490 535 693 Explosions 1985 | . . 754 . 1231 Melee . | . . . . . Ramming . | . . . . . Kinetic 171 | . 171 . . . Thermal 2503 | . 785 490 535 693 Explosive 1985 | . . 754 . 1231 Electromagnetic 196 | 160 36 . . . Impact . | . . . . . Slashing . | . . . . . Piercing . | . . . . . Highest Corruption 5 | . . . 5 5 Average Corruption 5 | . . . 5 5 Corruption Purged . | . . . . . Corruption Blocked . | . . . . . Effects 23 | . . . 10 13 Message Errors 4 | . . . 1 3 Matter Fused 6 | . . . 4 2 Heat Flow Errors 4 | . . . 2 2 Energy Discharges 4 | . . . 1 3 Parts Fused 1 | . . . 1 . Data Loss (minor) 1 | . . . . 1 Alerts 2 | . . . 1 1 Weapon Failures 1 | . . . . 1 Overload Shots . | . . . . . Overflow Damage 164 | . 10 7 . 147 Projectiles 55 | . 10 . . 45 Explosions 109 | . . 7 . 102 Melee . | . . . . . Knockbacks . | . . . . . Impact . | . . . . . Kinetic . | . . . . . Secondary . | . . . . . Self-Inflicted Damage 510 | . . 57 . 453 Shots 14 | . . 3 . 11 Rammed . | . . . . . Targets Rammed . | . . . . . Kicked . | . . . . . Crushed . | . . . . . Highest Temperature 298 | 36 298 66 192 186 Average Temperature 55 | 15 76 14 32 42 Received Heat Transfer 765 | . 237 195 135 198 Siege Activations . | . . . . . Martial Activations . | . . . . . Shielding Activations . | . . . . . Robots Disrupted . | . . . . . Combat Hostiles . | . . . . . Robots Corrupted . | . . . . . Combat Hostiles . | . . . . . Parts Fried . | . . . . . Impact Corruptions . | . . . . . Robots Melted 1 | . . . . 1 Combat Hostiles 1 | . . . . 1 Parts Melted 10 | . 2 . 4 4 Heat Transferred 4348 | . 1554 888 888 1018 Parts Sabotaged . | . . . . . Parts Stolen . | . . . . . Parts Stripped . | . . . . . Power Chain Reactions . | . . . . . Alert | -11 -10 -9 -8 -8 ------- Run | Yrd Mat Mat Mat Sto Maximum Alert Level 1 | . . 1 . 1 Low Security (%) 88 | 100 100 59 100 94 Level 1 11 | . . 40 . 5 Level 2 . | . . . . . Level 3 . | . . . . . Level 4 . | . . . . . Level 5 . | . . . . . High Security . | . . . . . Max Security . | . . . . . Peak Influence 265 | 10 187 265 104 247 Initial 104 | . 6 34 104 22 Average 92 | 1 81 153 78 66 Influence Increases 1677 | 25 440 497 161 554 Destroy 0b10 Robot/C 1080 | . 300 340 120 320 Destroy 0b10 Robot/NC 90 | 25 30 25 . 10 Destroy Leader 268 | . 66 72 40 90 Allied During Kill 7 | . . . . 7 Successful Hack 19 | . 12 7 . . Disable Machine 60 | . . . . 60 Destroy Structure 93 | . 2 53 1 37 Lose Combat Pursuer 60 | . 30 . . 30 Influence Decreases 1438 | 15 367 333 353 370 Entered New Map 229 | . 4 49 143 33 Time Decay 1009 | 15 353 264 180 197 Lost Part 160 | . 10 20 30 100 Lost Ally 40 | . . . . 40 Squads Dispatched 6 | . 3 1 . 2 Investigation 1 | . 1 . . . Extermination . | . . . . . Reinforcement 3 | . 2 1 . . Assault 2 | . . . . 2 Garrison . | . . . . . Intercept . | . . . . . Searches Triggered . | . . . . . Construction Impeded . | . . . . . Haulers Reinforced . | . . . . . Active Scanning Responses . | . . . . . Cargo Convoy Interrupts . | . . . . . Stealth | -11 -10 -9 -8 -8 --------- Run | Yrd Mat Mat Mat Sto Distress Signals 1 | . . . . 1 Communications Jammed . | . . . . . Distress Signals . | . . . . . Times Spotted 79 | . 24 22 6 27 Peak Tracking Total 7 | . 3 5 3 7 Tactical Retreats 3 | . 2 . . 1 Traps | -11 -10 -9 -8 -8 ------- Run | Yrd Mat Mat Mat Sto Traps Triggered 2 | . 1 . . 1 Indirectly . | . . . . . Trap Hack Attempts . | . . . . . Triggered . | . . . . . Disarmed . | . . . . . Reprogrammed . | . . . . . Reused . | . . . . . Traps Extracted . | . . . . . Installed . | . . . . . Triggered . | . . . . . Machines | -11 -10 -9 -8 -8 ---------- Run | Yrd Mat Mat Mat Sto Machines Disabled 4 | . . . . 4 Max in Single Turn 2 | . . . . 2 Machines Repaired . | . . . . . Machines Dismantled . | . . . . . Machines Sabotaged . | . . . . . Overloaded Fab Kills . | . . . . . Hacking | -11 -10 -9 -8 -8 --------- Run | Yrd Mat Mat Mat Sto Machines Accessed 10 | . 6 2 . 2 Terminals 9 | . 5 2 . 2 Fabricators . | . . . . . Repair Stations . | . . . . . Recycling Units 1 | . 1 . . . Scanalyzers . | . . . . . Garrison Access . | . . . . . Total Hacks 16 | . 10 3 . 3 Successful 8 | . 5 1 . 2 Failed 8 | . 5 2 . 1 Catastrophic 2 | . 1 1 . . Database Lockouts . | . . . . . Manual 2 | . 1 1 . . Terminals 15 | . 9 3 . 3 Fabricators . | . . . . . Repair Stations . | . . . . . Recycling Units 1 | . 1 . . . Scanalyzers . | . . . . . Garrison Access . | . . . . . Terminal Hacks 7 | . 4 1 . 2 Prototype ID Bank 2 | . 2 . . . Open Door 2 | . . . . 2 Transport Status 1 | . 1 . . . Registered Components 2 | . 1 1 . . Fabricator Hacks . | . . . . . Repair Station Hacks . | . . . . . Recycling Unit Hacks 1 | . 1 . . . Report Inventory 1 | . 1 . . . Scanalyzer . | . . . . . Garrison Access Hacks . | . . . . . Unauthorized Hacks . | . . . . . Terminals . | . . . . . Fabricators . | . . . . . Repair Stations . | . . . . . Recycling Units . | . . . . . Scanalyzers . | . . . . . Garrison Access . | . . . . . Data Cores Recovered 3 | . 2 1 . . Used 2 | . 2 . . . Hacking Detections 6 | . 3 2 . 1 Full Trace Events . | . . . . . Feedback Events . | . . . . . Feedback Blocked . | . . . . . Robot Schematics Acquired . | . . . . . Robots Built . | . . . . . Authchips . | . . . . . Time . | . . . . . Total Robot Build Rating . | . . . . . Part Schematics Acquired . | . . . . . Parts Built . | . . . . . Authchips . | . . . . . Time . | . . . . . Total Part Build Rating . | . . . . . Part Studies Acquired . | . . . . . Parts Repaired . | . . . . . Time . | . . . . . Parts Recycled . | . . . . . Recycled Matter . | . . . . . Retrieved Matter . | . . . . . Retrieved Components . | . . . . . Parts Scanalyzed . | . . . . . Part Schematics Acquired . | . . . . . Parts Damaged . | . . . . . Bothacking | -11 -10 -9 -8 -8 ------------ Run | Yrd Mat Mat Mat Sto Used RIF Installer . | . . . . . Robots Hacked . | . . . . . Non-combat . | . . . . . Combat . | . . . . . Robot Hacks Applied . | . . . . . Relay Couplers Released . | . . . . . Fabnet Peak Effective % . | . . . . . Robots Rewired . | . . . . . Allies Hacked . | . . . . . Hacks Repelled . | . . . . . Allies | -11 -10 -9 -8 -8 -------- Run | Yrd Mat Mat Mat Sto Total Allies 2 | . . . . 2 Largest Group 2 | . . . . 2 Highest-Rated Group 62 | . . . . 62 Highest-Rated Ally 31 | . . . . 31 Total Orders 3 | . . . . 3 ROAM 1 | . . . . 1 RETURN 2 | . . . . 2 Ally Attacks 10 | . . . . 10 Total Damage 206 | . . . . 206 Kills 3 | . . . . 3 Allies Corrupted . | . . . . . Allies Melted . | . . . . . Intel | -11 -10 -9 -8 -8 ------- Run | Yrd Mat Mat Mat Sto Active Infowar (turns) 678 | 3 385 82 194 14 Terrain 334 | 3 257 74 . . Structural 193 | . . . 193 . Seismic 176 | . 128 8 26 14 Robot Analysis Total . | . . . . . Derelict Logs Recovered . | . . . . . Drone Launches 2 | . . . . 2 Drone Recoveries . | . . . . . Exploration | -11 -10 -9 -8 -8 ------------- Run | Yrd Mat Mat Mat Sto Turns Passed 2641 | 116 897 682 366 580 Spaces Moved 1286 | 28 510 375 161 212 Core . | . . . . . Treads . | . . . . . Legs 1286 | 28 510 375 161 212 Wheels . | . . . . . Hover . | . . . . . Flight . | . . . . . Fastest Speed 120 | 120 120 120 120 120 Average Speed 143 | 120 120 143 172 182 Slowest Speed 190 | 120 190 190 190 190 Overloaded Moves . | . . . . . Propulsion Burnouts . | . . . . . Robots Hopped . | . . . . . Potential Cave-ins . | . . . . . Cave-ins Triggered . | . . . . . Exploration Rate (%) 34 | 5 69 42 13 42 Regions Visited 4 Branch Regions 1 Pre-discovered Areas . | . . . . . Known Exits Taken . | . . . . . Unknown Exits Taken 4 | 1 1 1 1 . Scrap Searched . | . . . . . Spaces Dug 2 | . . . . 2 Terrain Destroyed 108 | . . 55 1 52 Melee . | . . . . . Projectile 15 | . . . 1 14 AOE 93 | . . 55 . 38 Terrain Rammed . | . . . . . Walls Destroyed . | . . . . . Machines Disabled . | . . . . . Actions | -11 -10 -9 -8 -8 --------- Run | Yrd Mat Mat Mat Sto Total 1836 | 91 706 472 226 341 Wait 261 | 47 98 32 20 64 Move 1282 | 27 509 374 160 212 Hop . | . . . . . Pick Up 40 | 3 10 16 7 4 Fast Attach 6 | 1 2 . 1 2 Attach 12 | . . 4 4 4 Detach . | . . . . . Swap 48 | 3 18 9 10 8 Drop 41 | 1 19 6 9 6 Fire 140 | 9 50 31 15 35 Melee . | . . . . . Ram . | . . . . . Kick . | . . . . . Crush . | . . . . . Escape Stasis 5 | . . . . 5 Rewire . | . . . . . Trap . | . . . . . Miscellaneous 1 | . . . . 1 Route ------- -11/Scrapyard -10/Materials (discovered 5 exits: *Mat x3 / [*Min x2]) -9/Materials (discovered 2 exits: [*Mat x2]) -8/Materials -8/Storage History --------- Turn | Location | Event 18 | -11/Scrapyard | Discovered new exit (range 3) 117 | -11/Scrapyard | Entered Materials 199 | -10/Materials | Discovered new exit (range 11) 304 | -10/Materials | Build established: Mutant 534 | -10/Materials | Discovered new exit (range 8) 611 | -10/Materials | Discovered new exit (range 14) 868 | -10/Materials | Discovered new exit (range 16) 984 | -10/Materials | Discovered new exit (range 4) 1014 | -10/Materials | Entered another Materials area 1014 | -9/Materials | Evolved 2 slots: Propulsion x2 1354 | -9/Materials | Discovered new exit (range 8) 1670 | -9/Materials | Discovered new exit (range 9) 1696 | -9/Materials | Entered another Materials area 1696 | -8/Materials | Evolved 2 slots: Propulsion x1, Utility x1 1698 | -8/Materials | Discovered new exit (range 8) 1808 | -8/Materials | Lost 3 parts (2n1w) 2062 | -8/Materials | Entered Storage 2130 | -8/Storage | Build established: Scavenger-Mutant 2527 | -8/Storage | Met a pair of Derelict thieves 2622 | -8/Storage | Core integrity fell below 50% 2631 | -8/Storage | Core integrity fell below 20% 2642 | -8/Storage | Destroyed by G-47 Trooper with Particle Gun Last Messages --------------- 02623_ Destroyed Carbon-fiber Leg. 02624_ L-31 Rogue suffers critical hit (Burn). 02624_ R-06 Scavenger collects Imp. Assault Rifle. 02625_ K-01 Serf collects debris. 02625_ L-31 Rogue destroyed. 02627_ K-01 Serf collects debris. 02627_ Destroyed Imp. Ion Engine. 02629_ R-06 Scavenger collects Carbon-fiber Leg. 02629_ K-01 Serf collects debris. 02630_ Critical hit (Burn: +37). 02631_ K-01 Serf collects debris. 02632_ The unstable cave ceiling collapses. 02633_ K-01 Serf collects debris. 02634_ Mni. Grenade Launcher destroyed. 02635_ L-31 Rogue destroyed. 02636_ K-01 Serf collects debris. 02638_ The unstable cave ceiling collapses. 02639_ K-01 Serf collects debris. 02639_ U-05 Engineer builds a Wall. 02642_ K-01 Serf collects debris. Map ----- +----------------------------------------------------+ | | | | | | | | | | | | | | | | | | | | | | | | | | | | | | | | | | | | | | | | | | | | | | | ????????????????#### ##??????????????????? | | ???????########?# // ! # #??????????????????? | | ???????#! ! !#?# / @ #??????????????????? | | ???????# ! !!#?# % ##??????????????????? | | ???????#!! #?# %= #??????????????????? | | ???????# * !#?# % ##??????????????????? | | ???????###"%"##?# g # #???????????????????? | | ????????#T%[!!#?# " mg ##???????????????????? | | ????????##!%![#?# " "k r k ##????????????????????? | | #+#########+######;## ###????????????????????? | | = u ?????????????? | | u ?????????????? | | ?????????????? | | #"Y"#######+#########+#########+###??????????????? | | ?"????# #??? ? ???????????????????????? | | ??????# #??? "?? ???????????????????????? | | ??????# #???????? #??????????????????????? | | ??????# "" #???????? ???????????????????????? | | ##????# "" #????????????????????????????????? | | !#????# """ !! ##???????????????????????????????? | | !#????# !!! #???????????????????????????????? | | !#????#*!= !!! ##???????????????????????????????? | | !#????##+########????????????????????????????????? | | ###????#%#???????????????????????????????????????? | | T#????#!#???##??????????????????????????????????? | | ########+#### #??????????????????????????????????? | | # = #??????????????????????????????????? | +----------------------------------------------------+ Best States ------------- Heat Dissipation 53 Energy Generation 12 Energy Capacity 265 Matter Stores 300 Matter Capacity 300 Sight Range 16 Terrain Scan Range 16 Terrain Scan Density 10 Armor Coverage 150 Core Shielding 20 Evasion (%) 55 Targeting Accuracy 6 Item Schematics ----------------- None Robot Schematics ------------------ None Fabricated ------------ Nothing Repaired ---------- Nothing Studied --------- None Alien Tech Used ----------------- None Achievements -------------- None Challenges ------------ None Game ------ Seed MetaOmegaTrident Manual? 0 Play Time 00:43:47 Cumulative 168.8 hours Start 2026.01.16 @ 14:56:02 End 2026.01.16 @ 15:49:53 Sessions 1 Manual Loads 0 Difficulty Rogue Special Mode None Game No. 282 Rogue 278 Adventurer 0 Explorer 4 Win Type - Total 0 Types 0/0/0/0/0/0/0/0/0/0 Lore% 25 Gallery% 42 Achievement% 28 Wizard Run 0 Options --------- Layout 1 ASCII 0 Keyboard 1 Movement Arrows Keybinds 0 Fullscreen 1 Font 32/SmallcapsGlow Map View 130x35 Zoom Use 0% Tactical HUD 1 Map Filters NONE Filters NONE Steam 1 RUN: 1ad8a510-f91e-4818-9c49-38f2db140387